[Event "15th Governor Cup 2019"]
[Site "Khanty-Mansiysk"]
[Date "2019.11.24"]
[Round "8.1"]
[White "Goganov, Aleksey"]
[Black "Rakhmanov, Aleksandr"]
[Result "1-0"]
[ECO "D30"]
[WhiteElo "2565"]
[BlackElo "2638"]
[Annotator "ChessBase"]
[PlyCount "119"]
[EventDate "2019.11.19"]
[EventType "swiss"]
[EventCountry "RUS"]
[SourceTitle "playchess.com"]
[Source "ChessBase"]
[SourceQuality "1"]
[TimeControl "5400+30"]

1. d4 {[%emt 0:00:00]} d5 {[%emt 0:00:00]} 2. c4 {[%emt 0:00:00]} e6 {[%emt 0:00:00]} 3. Nf3 {[%emt 0:00:00]} a6 {[%emt 0:00:00]} 4. Bg5 {[%emt 0:00:00]} Be7 {[%emt 0:00:00]} 5. Bxe7 {[%emt 0:00:00]} Qxe7 {[%emt 0:00:00]} 6. Nbd2 {[%emt 0:00:10]} Nf6 {[%emt 0:00:14]} 7. Rc1 {[%emt 0:00:22]} O-O {[%emt 0:00:38]} 8. g3 {[%emt 0:00:18]} c6 {[%emt 0:00:15]} 9. Bg2 {[%emt 0:00:07]} Nbd7 {[%emt 0:00:17]} 10. O-O {[%emt 0:00:08]} e5 {[%emt 0:00:25]} 11. dxe5 {[%emt 0:00:47]} Nxe5 {[%emt 0:01:55]} 12. Nxe5 {[%emt 0:00:04]} Qxe5 {[%emt 0:00:08]} 13. cxd5 {[%emt 0:00:02]} cxd5 {[%emt 0:00:10]} 14. Rc3 {[%emt 0:00:09]} Bg4 {[%emt 0:00:10]} 15. Nf3 {[%emt 0:00:43]} Bxf3 {[%emt 0:00:08]} 16. Bxf3 {[%emt 0:00:29]} Rac8 {[%emt 0:01:53]} 17. Rc2 {[%emt 0:06:48]} Rfe8 {[%emt 0:02:39]} 18. Qd3 {[%emt 0:08:17]} h5 {[%emt 0:07:37]} 19. h4 {[%emt 0:03:12]} Rc7 {[%emt 0:25:47]} 20. Rxc7 {[%emt 0:15:03]} Qxc7 {[%emt 0:00:16]} 21. Qd4 {[%emt 0:02:05]} Re6 {[%emt 0:15:03]} 22. Rd1 {[%emt 0:02:44]} Qb6 {[%emt 0:01:43]} 23. b3 {[%emt 0:03:46]} Qxd4 {[%emt 0:09:30]} 24. Rxd4 {[%emt 0:00:06]} Kf8 {[%emt 0:02:09]} 25. e3 {[%emt 0:01:47]} Re5 {[%emt 0:01:20]} 26. Kf1 {[%emt 0:19:50]} Ke8 {[%emt 0:01:35]} 27. Ke2 {[%emt 0:00:38]} Kd7 {[%emt 0:00:49]} 28. Rf4 {[%emt 0:01:48]} Kd6 {[%emt 0:01:35]} 29. Kd3 {[%emt 0:02:12]} Re7 {[%emt 0:00:57]} 30. Rd4 {[%emt 0:04:35]} Kc5 {[%emt 0:20:02]} 31. b4+ {[%emt 0:00:35]} Kd6 {[%emt 0:00:23]} 32. Bxd5 {[%emt 0:01:02]} Nxd5 {[%emt 0:01:11]} 33. e4 {[%emt 0:00:23]} g6 {[%emt 0:01:03]} 34. Rxd5+ {[%emt 0:00:04]} Ke6 {[%emt 0:00:08]} 35. f4 {[%emt 0:01:57]} Rc7 {[%emt 0:00:13]} 36. f5+ {[%emt 0:01:21]} gxf5 {[%emt 0:00:52]} 37. Rxf5 {[%emt 0:00:05]} f6 {[%emt 0:00:05]} 38. Ke3 {[%emt 0:02:15]} Rc2 {[%emt 0:05:47]} 39. a4 {[%emt 0:00:28]} b6 {[%emt 0:01:23]} 40. Rxh5 {[%emt 0:01:50]} Rc4 {[%emt 0:00:02]} 41. a5 {[%emt 0:01:27]} b5 {[%emt 0:00:55]} 42. Rc5 {[%emt 0:02:51]} Rxb4 {[%emt 0:00:04]} 43. Kf4 {[%emt 0:00:54]} Kd6 {[%emt 0:01:12]} 44. Rc8 {[%emt 0:01:03]} Rb1 {[%emt 0:00:11]} 45. Ra8 {[%emt 0:01:14]} Rf1+ {[%emt 0:00:20]} 46. Ke3 {[%emt 0:04:21]} Ra1 {[%emt 0:00:05]} 47. Rxa6+ {[%emt 0:00:08]} Ke5 {[%emt 0:00:02]} 48. Kf3 {[%emt 0:00:23]} Rf1+ {[%emt 0:02:06]} 49. Kg2 {[%emt 0:01:18]} Ra1 {[%emt 0:00:08]} 50. h5 {[%emt 0:02:41]} b4 {[%emt 0:00:20]} 51. h6 {[%emt 0:00:44]} Ra2+ {[%emt 0:00:12]} 52. Kh3 {[%emt 0:00:13]} Ra1 {[%emt 0:00:59]} 53. Rb6 {[%emt 0:01:30]} Rxa5 {[%emt 0:00:18]} 54. Rxb4 {[%emt 0:00:49]} Ke6 {[%emt 0:00:59]} 55. e5 {[%emt 0:07:06]} Ra1 {[%emt 0:00:43]} 56. Rh4 {[%emt 0:00:45]} Ra8 {[%emt 0:00:13]} 57. h7 {[%emt 0:00:11]} Rh8 {[%emt 0:00:06]} 58. exf6 {[%emt 0:00:48]} Kxf6 {[%emt 0:00:06]} 59. Kg4 {[%emt 0:00:08]} Kg6 {[%emt 0:01:23]} 60. Rh1 {[%emt 0:00:07]} 1-0

[Event "15th Governor Cup 2019"]
[Site "Khanty-Mansiysk"]
[Date "2019.11.24"]
[Round "8.3"]
[White "Frolyanov, Dmitry"]
[Black "Kokarev, Dmitry"]
[Result "1/2-1/2"]
[ECO "B90"]
[WhiteElo "2556"]
[BlackElo "2601"]
[Annotator "ChessBase"]
[PlyCount "43"]
[EventDate "2019.11.19"]
[EventType "swiss"]
[EventCountry "RUS"]
[SourceTitle "playchess.com"]
[Source "ChessBase"]
[SourceQuality "1"]
[TimeControl "5400+30"]

1. e4 {[%emt 0:00:26]} c5 {[%emt 0:00:00]} 2. Nf3 {[%emt 0:00:05]} d6 {[%emt 0:00:00]} 3. d4 {[%emt 0:00:07]} cxd4 {[%emt 0:00:00]} 4. Nxd4 {[%emt 0:00:04]} Nf6 {[%emt 0:00:00]} 5. Nc3 {[%emt 0:00:09]} a6 {[%emt 0:00:00]} 6. Be3 {[%emt 0:01:10]} e5 {[%emt 0:00:08]} 7. Nf3 {[%emt 0:00:11]} Be7 {[%emt 0:00:10]} 8. Bc4 {[%emt 0:00:22]} O-O {[%emt 0:00:08]} 9. O-O {[%emt 0:00:10]} Nc6 {[%emt 0:00:07]} 10. Re1 {[%emt 0:01:21]} Be6 {[%emt 0:01:02]} 11. Nd5 {[%emt 0:00:35]} Bxd5 {[%emt 0:00:26]} 12. exd5 {[%emt 0:00:06]} b5 {[%emt 0:00:09]} 13. Bf1 {[%emt 0:00:28]} Nb4 {[%emt 0:00:12]} 14. c4 {[%emt 0:00:18]} bxc4 {[%emt 0:00:10]} 15. Bxc4 {[%emt 0:00:16]} Qc7 {[%emt 0:01:06]} 16. Rc1 {[%emt 0:01:53]} Qb7 {[%emt 0:00:25]} 17. Qb3 {[%emt 0:02:26]} Rab8 {[%emt 0:00:51]} 18. Red1 {[%emt 0:05:50]} Qd7 {[%emt 0:00:18]} 19. Qc3 {[%emt 0:05:28]} Qb7 {[%emt 0:04:21]} 20. Qb3 {[%emt 0:05:39]} Qd7 {[%emt 0:00:10]} 21. Qc3 {[%emt 0:00:11]} Qb7 {[%emt 0:00:06]} 22. Qb3 {[%emt 0:00:09]} 1/2-1/2

[Event "15th Governor Cup 2019"]
[Site "Khanty-Mansiysk"]
[Date "2019.11.24"]
[Round "8.5"]
[White "Pogosyan, Stefan"]
[Black "Bocharov, Dmitry"]
[Result "1-0"]
[ECO "A41"]
[WhiteElo "2455"]
[BlackElo "2519"]
[Annotator "ChessBase"]
[PlyCount "73"]
[EventDate "2019.11.19"]
[EventType "swiss"]
[EventCountry "RUS"]
[SourceTitle "playchess.com"]
[Source "ChessBase"]
[SourceQuality "1"]
[TimeControl "5400+30"]

1. d4 {[%emt 0:00:00]} d6 {[%emt 0:03:48]} 2. Nf3 {[%emt 0:01:40]} g6 {[%emt 0:00:36]} 3. c4 {[%emt 0:00:51]} Nf6 {[%emt 0:00:11]} 4. Nc3 {[%emt 0:00:05]} Bf5 {[%emt 0:00:05]} 5. g3 {[%emt 0:00:24]} Ne4 {[%emt 0:02:11]} 6. Bg2 {[%emt 0:04:57]} Nxc3 {[%emt 0:02:06]} 7. bxc3 {[%emt 0:00:24]} Be4 {[%emt 0:01:49]} 8. O-O {[%emt 0:00:31]} Bg7 {[%emt 0:00:12]} 9. Bh3 {[%emt 0:05:00]} O-O {[%emt 0:03:19]} 10. Nd2 {[%emt 0:01:37]} Bc6 {[%emt 0:00:16]} 11. e4 {[%emt 0:00:42]} e5 {[%emt 0:01:58]} 12. Bb2 {[%emt 0:02:48]} Bd7 {[%emt 0:08:37]} 13. Bg2 {[%emt 0:01:49]} Nc6 {[%emt 0:00:16]} 14. Nb3 {[%emt 0:01:56]} a5 {[%emt 0:11:08]} 15. a4 {[%emt 0:03:49]} f5 {[%emt 0:06:17]} 16. exf5 {[%emt 0:10:28]} Bxf5 {[%emt 0:08:23]} 17. d5 {[%emt 0:04:52]} Ne7 {[%emt 0:08:30]} 18. c5 {[%emt 0:00:29]} b6 {[%emt 0:05:08]} 19. cxd6 {[%emt 0:02:58]} cxd6 {[%emt 0:00:12]} 20. Nd2 {[%emt 0:01:20]} Rc8 {[%emt 0:03:34]} 21. Ne4 {[%emt 0:04:45]} Kh8 {[%emt 0:03:47]} 22. Qb3 {[%emt 0:07:19]} Ng8 {[%emt 0:07:11]} 23. Ba3 {[%emt 0:01:49]} Bxe4 {[%emt 0:00:35]} 24. Bxe4 {[%emt 0:00:07]} Nf6 {[%emt 0:00:01]} 25. Bg2 {[%emt 0:00:16]} e4 {[%emt 0:07:18]} 26. Bh3 {[%emt 0:01:34]} Rb8 {[%emt 0:02:20]} 27. Rae1 {[%emt 0:05:54]} h5 {[%emt 0:01:01]} 28. Be6 {[%emt 0:01:02]} Nh7 {[%emt 0:02:50]} 29. h4 {[%emt 0:15:33]} Rf3 {[%emt 0:00:39]} 30. Qb1 {[%emt 0:00:54]} Nf6 {[%emt 0:01:43]} 31. Rxe4 {[%emt 0:02:45]} b5 {[%emt 0:04:47]} 32. axb5 {[%emt 0:10:00]} Qb6 {[%emt 0:01:57]} 33. Kg2 {[%emt 0:01:09]} Rxc3 {[%emt 0:00:29]} 34. Rf4 {[%emt 0:03:38]} Rxa3 {[%emt 0:01:04]} 35. Rxf6 {[%emt 0:00:09]} Bxf6 {[%emt 0:01:03]} 36. Qxg6 {[%emt 0:00:06]} Qc7 {[%emt 0:00:23]} 37. Bf7 {[%emt 0:00:24]} 1-0

[Event "15th Governor Cup 2019"]
[Site "Khanty-Mansiysk"]
[Date "2019.11.24"]
[Round "8.6"]
[White "Rozum, Ivan"]
[Black "Belyakov, Bogdan"]
[Result "1/2-1/2"]
[ECO "D20"]
[WhiteElo "2593"]
[BlackElo "2495"]
[Annotator "ChessBase"]
[PlyCount "57"]
[EventDate "2019.11.19"]
[EventType "swiss"]
[EventCountry "RUS"]
[SourceTitle "playchess.com"]
[Source "ChessBase"]
[SourceQuality "1"]
[TimeControl "5400+30"]

1. d4 {[%emt 0:04:26]} d5 {[%emt 0:00:00]} 2. c4 {[%emt 0:00:38]} dxc4 {[%emt 0:00:00]} 3. e4 {[%emt 0:00:06]} Nf6 {[%emt 0:00:00]} 4. e5 {[%emt 0:00:06]} Nd5 {[%emt 0:00:00]} 5. Bxc4 {[%emt 0:00:06]} Nb6 {[%emt 0:00:38]} 6. Bd3 {[%emt 0:00:12]} Nc6 {[%emt 0:00:14]} 7. Be3 {[%emt 0:00:18]} Nb4 {[%emt 0:03:56]} 8. Be4 {[%emt 0:00:13]} N4d5 {[%emt 0:01:46]} 9. Nc3 {[%emt 0:01:36]} Be6 {[%emt 0:04:17]} 10. Nge2 {[%emt 0:08:21]} c6 {[%emt 0:02:33]} 11. O-O {[%emt 0:00:30]} Qd7 {[%emt 0:01:21]} 12. Qc2 {[%emt 0:09:42]} g6 {[%emt 0:01:50]} 13. Nc1 {[%emt 0:05:27]} f5 {[%emt 0:16:59]} 14. Bxd5 {[%emt 0:06:09]} Bxd5 {[%emt 0:03:10]} 15. Nd3 {[%emt 0:01:00]} e6 {[%emt 0:02:42]} 16. Bg5 {[%emt 0:06:58]} Bc4 {[%emt 0:06:53]} 17. Rfd1 {[%emt 0:07:36]} Bxd3 {[%emt 0:00:39]} 18. Rxd3 {[%emt 0:00:04]} Be7 {[%emt 0:00:46]} 19. Bxe7 {[%emt 0:01:15]} Qxe7 {[%emt 0:00:13]} 20. a4 {[%emt 0:05:09]} a5 {[%emt 0:01:53]} 21. Qb3 {[%emt 0:00:18]} Ra6 {[%emt 0:02:10]} 22. Nb1 {[%emt 0:07:51]} O-O {[%emt 0:03:43]} 23. Nd2 {[%emt 0:00:40]} Rd8 {[%emt 0:00:17]} 24. Rc1 {[%emt 0:05:12]} Nd5 {[%emt 0:11:19]} 25. Rc4 {[%emt 0:11:04]} Rb6 {[%emt 0:01:01]} 26. Qa2 {[%emt 0:03:45]} Nb4 {[%emt 0:11:14]} 27. Qb3 {[%emt 0:01:30]} Nd5 {[%emt 0:00:34]} 28. Qa2 {[%emt 0:00:10]} Nb4 {[%emt 0:02:19]} 29. Qb3 {[%emt 0:00:12]} 1/2-1/2

[Event "15th Governor Cup 2019"]
[Site "Khanty-Mansiysk"]
[Date "2019.11.24"]
[Round "8.7"]
[White "Lugovskoy, Maxim"]
[Black "Bocharov, Ivan"]
[Result "1-0"]
[ECO "B51"]
[WhiteElo "2444"]
[BlackElo "2571"]
[Annotator "ChessBase"]
[PlyCount "51"]
[EventDate "2019.11.19"]
[EventType "swiss"]
[EventCountry "RUS"]
[SourceTitle "playchess.com"]
[Source "ChessBase"]
[SourceQuality "1"]
[TimeControl "5400+30"]

1. e4 {[%emt 0:00:21]} c5 {[%emt 0:00:00]} 2. Nf3 {[%emt 0:00:16]} d6 {[%emt 0:00:00]} 3. Bb5+ {[%emt 0:00:46]} Nd7 {[%emt 0:00:00]} 4. d4 {[%emt 0:00:20]} cxd4 {[%emt 0:00:00]} 5. Qxd4 {[%emt 0:00:22]} a6 {[%emt 0:00:22]} 6. Bxd7+ {[%emt 0:00:06]} Bxd7 {[%emt 0:00:02]} 7. c4 {[%emt 0:00:13]} Nf6 {[%emt 0:00:10]} 8. Bg5 {[%emt 0:02:27]} b5 {[%emt 0:09:35]} 9. Nc3 {[%emt 0:00:29]} e5 {[%emt 0:01:38]} 10. Qd3 {[%emt 0:00:07]} bxc4 {[%emt 0:01:39]} 11. Qxc4 {[%emt 0:00:06]} Be7 {[%emt 0:05:51]} 12. Rd1 {[%emt 0:03:31]} Qb8 {[%emt 0:03:13]} 13. Qd3 {[%emt 0:05:33]} Qxb2 {[%emt 0:05:08]} 14. Nxe5 {[%emt 0:09:01]} Rc8 {[%emt 0:07:59]} 15. Nxd7 {[%emt 0:01:52]} Rxc3 {[%emt 0:00:30]} 16. Nxf6+ {[%emt 0:00:13]} gxf6 {[%emt 0:00:05]} 17. Qd4 {[%emt 0:00:50]} Rg8 {[%emt 0:03:09]} 18. Bd2 {[%emt 0:00:44]} Rc2 {[%emt 0:00:22]} 19. Qa4+ {[%emt 0:00:05]} Kd8 {[%emt 0:01:23]} 20. O-O {[%emt 0:09:38]} Qxa2 {[%emt 0:01:04]} 21. Qd4 {[%emt 0:03:04]} Qc4 {[%emt 0:07:47]} 22. Qa7 {[%emt 0:01:57]} f5 {[%emt 0:09:37]} 23. g3 {[%emt 0:00:58]} fxe4 {[%emt 0:09:05]} 24. Rb1 {[%emt 0:00:22]} Qc7 {[%emt 0:01:31]} 25. Rb8+ {[%emt 0:00:38]} Kd7 {[%emt 0:00:06]} 26. Rb7 {[%emt 0:00:08]} 1-0

[Event "15th Governor Cup 2019"]
[Site "Khanty-Mansiysk"]
[Date "2019.11.24"]
[Round "8.8"]
[White "Afanasiev, Nikita"]
[Black "Potapov, Pavel"]
[Result "1-0"]
[ECO "A05"]
[WhiteElo "2508"]
[BlackElo "2489"]
[Annotator "ChessBase"]
[PlyCount "119"]
[EventDate "2019.11.19"]
[EventType "swiss"]
[EventCountry "RUS"]
[SourceTitle "playchess.com"]
[Source "ChessBase"]
[SourceQuality "1"]
[TimeControl "5400+30"]

1. Nf3 {[%emt 0:10:23]} Nf6 {[%emt 0:00:00]} 2. g3 {[%emt 0:01:16]} b6 {[%emt 0:01:37]} 3. Bg2 {[%emt 0:00:32]} Bb7 {[%emt 0:00:05]} 4. O-O {[%emt 0:00:30]} e6 {[%emt 0:00:12]} 5. c4 {[%emt 0:02:03]} Be7 {[%emt 0:00:25]} 6. Nc3 {[%emt 0:05:12]} O-O {[%emt 0:00:38]} 7. Re1 {[%emt 0:03:09]} d5 {[%emt 0:05:13]} 8. cxd5 {[%emt 0:01:33]} exd5 {[%emt 0:01:05]} 9. d4 {[%emt 0:00:08]} c5 {[%emt 0:07:52]} 10. Bf4 {[%emt 0:25:54]} Nc6 {[%emt 0:03:03]} 11. e3 {[%emt 0:01:56]} Ne4 {[%emt 0:13:08]} 12. dxc5 {[%emt 0:12:07]} Nxc3 {[%emt 0:00:26]} 13. bxc3 {[%emt 0:00:04]} Bxc5 {[%emt 0:00:23]} 14. Qd3 {[%emt 0:02:29]} h6 {[%emt 0:05:29]} 15. h4 {[%emt 0:09:15]} Qf6 {[%emt 0:03:33]} 16. Rad1 {[%emt 0:04:19]} Rad8 {[%emt 0:01:56]} 17. g4 {[%emt 0:04:38]} Ne7 {[%emt 0:05:26]} 18. g5 {[%emt 0:01:52]} hxg5 {[%emt 0:00:31]} 19. hxg5 {[%emt 0:03:12]} Qg6 {[%emt 0:01:23]} 20. Ne5 {[%emt 0:02:15]} Qxd3 {[%emt 0:01:40]} 21. Nxd3 {[%emt 0:00:40]} Bd6 {[%emt 0:01:37]} 22. Rd2 {[%emt 0:03:21]} Nf5 {[%emt 0:21:32]} 23. Red1 {[%emt 0:00:43]} Nh4 {[%emt 0:02:18]} 24. Bh1 {[%emt 0:00:37]} f6 {[%emt 0:04:02]} 25. c4 {[%emt 0:01:48]} dxc4 {[%emt 0:04:17]} 26. Bxb7 {[%emt 0:00:06]} cxd3 {[%emt 0:00:08]} 27. Rxd3 {[%emt 0:00:05]} Be7 {[%emt 0:00:08]} 28. gxf6 {[%emt 0:00:49]} gxf6 {[%emt 0:02:28]} 29. Rd7 {[%emt 0:01:58]} Ng6 {[%emt 0:01:02]} 30. Bc7 {[%emt 0:00:04]} Rxd7 {[%emt 0:00:52]} 31. Rxd7 {[%emt 0:00:01]} Bc5 {[%emt 0:00:46]} 32. Bd5+ {[%emt 0:01:37]} Kh8 {[%emt 0:00:05]} 33. Bh2 {[%emt 0:01:12]} a5 {[%emt 0:01:03]} 34. Kg2 {[%emt 0:00:40]} Ne5 {[%emt 0:00:28]} 35. Rb7 {[%emt 0:00:17]} Rd8 {[%emt 0:00:55]} 36. e4 {[%emt 0:00:20]} a4 {[%emt 0:01:25]} 37. Bg3 {[%emt 0:00:25]} a3 {[%emt 0:00:37]} 38. f4 {[%emt 0:00:43]} Nd3 {[%emt 0:00:34]} 39. Kf3 {[%emt 0:00:10]} Nb4 {[%emt 0:03:51]} 40. Be6 {[%emt 0:00:31]} Re8 {[%emt 0:00:17]} 41. Bc4 {[%emt 0:00:29]} Re7 {[%emt 0:00:32]} 42. Rb8+ {[%emt 0:00:33]} Kg7 {[%emt 0:00:11]} 43. Bh4 {[%emt 0:00:19]} Rc7 {[%emt 0:04:38]} 44. Rg8+ {[%emt 0:00:05]} Kh7 {[%emt 0:00:05]} 45. Bxf6 {[%emt 0:00:35]} Bd4 {[%emt 0:00:18]} 46. Bxd4 {[%emt 0:00:27]} Rxc4 {[%emt 0:00:04]} 47. Rh8+ {[%emt 0:00:47]} Kg6 {[%emt 0:00:03]} 48. f5+ {[%emt 0:00:05]} Kf7 {[%emt 0:00:14]} 49. Rh7+ {[%emt 0:00:05]} Kg8 {[%emt 0:00:10]} 50. Rh8+ {[%emt 0:01:07]} Kf7 {[%emt 0:00:01]} 51. Bxb6 {[%emt 0:00:03]} Nxa2 {[%emt 0:00:20]} 52. e5 {[%emt 0:01:00]} Nc3 {[%emt 0:00:51]} 53. e6+ {[%emt 0:00:18]} Kf6 {[%emt 0:00:28]} 54. Rf8+ {[%emt 0:00:52]} Ke7 {[%emt 0:00:26]} 55. Rf7+ {[%emt 0:00:30]} Ke8 {[%emt 0:00:23]} 56. Ra7 {[%emt 0:00:36]} Nd5 {[%emt 0:00:26]} 57. Be3 {[%emt 0:00:30]} Rc3 {[%emt 0:04:54]} 58. Ke4 {[%emt 0:00:05]} Nf6+ {[%emt 0:01:34]} 59. Kd4 {[%emt 0:00:05]} Rb3 {[%emt 0:00:18]} 60. Bg5 {[%emt 0:00:16]} 1-0

[Event "15th Governor Cup 2019"]
[Site "Khanty-Mansiysk"]
[Date "2019.11.24"]
[Round "8.9"]
[White "Savitskiy, Sergey"]
[Black "Khanin, Semen"]
[Result "1/2-1/2"]
[ECO "A05"]
[WhiteElo "2396"]
[BlackElo "2503"]
[Annotator "ChessBase"]
[PlyCount "101"]
[EventDate "2019.11.19"]
[EventType "swiss"]
[EventCountry "RUS"]
[SourceTitle "playchess.com"]
[Source "ChessBase"]
[SourceQuality "1"]
[TimeControl "5400+30"]

1. Nf3 {[%emt 0:00:00]} Nf6 {[%emt 0:00:00]} 2. g3 {[%emt 0:00:00]} g6 {[%emt 0:00:00]} 3. b3 {[%emt 0:00:00]} Bg7 {[%emt 0:00:13]} 4. Bb2 {[%emt 0:00:00]} b5 {[%emt 0:02:19]} 5. Bg2 {[%emt 0:00:29]} Bb7 {[%emt 0:00:03]} 6. d4 {[%emt 0:04:54]} d6 {[%emt 0:01:28]} 7. Qd3 {[%emt 0:06:11]} a6 {[%emt 0:00:13]} 8. c4 {[%emt 0:00:33]} Nbd7 {[%emt 0:15:56]} 9. Nbd2 {[%emt 0:10:20]} Rb8 {[%emt 0:02:34]} 10. O-O {[%emt 0:04:55]} O-O {[%emt 0:00:35]} 11. cxb5 {[%emt 0:10:25]} axb5 {[%emt 0:04:28]} 12. e4 {[%emt 0:00:08]} c5 {[%emt 0:10:59]} 13. e5 {[%emt 0:02:57]} dxe5 {[%emt 0:00:24]} 14. dxe5 {[%emt 0:00:55]} Nxe5 {[%emt 0:04:07]} 15. Nxe5 {[%emt 0:01:10]} Qxd3 {[%emt 0:00:06]} 16. Nxd3 {[%emt 0:00:05]} Bxg2 {[%emt 0:00:10]} 17. Kxg2 {[%emt 0:00:36]} Rfd8 {[%emt 0:00:48]} 18. Nxc5 {[%emt 0:01:31]} Rxd2 {[%emt 0:00:09]} 19. Bc3 {[%emt 0:01:49]} Rc2 {[%emt 0:02:58]} 20. Rfc1 {[%emt 0:15:12]} Rxc3 {[%emt 0:06:31]} 21. Rxc3 {[%emt 0:00:18]} Nd5 {[%emt 0:00:04]} 22. Rcc1 {[%emt 0:00:15]} Bxa1 {[%emt 0:00:59]} 23. Rxa1 {[%emt 0:00:05]} b4 {[%emt 0:01:18]} 24. Nd3 {[%emt 0:01:51]} Rc8 {[%emt 0:06:06]} 25. Rd1 {[%emt 0:06:22]} e6 {[%emt 0:09:18]} 26. Rd2 {[%emt 0:00:34]} g5 {[%emt 0:00:26]} 27. Kf3 {[%emt 0:17:50]} f5 {[%emt 0:01:08]} 28. Ke2 {[%emt 0:01:37]} Kg7 {[%emt 0:00:53]} 29. Kd1 {[%emt 0:04:13]} Kf6 {[%emt 0:09:01]} 30. Rc2 {[%emt 0:00:55]} Rxc2 {[%emt 0:02:01]} 31. Kxc2 {[%emt 0:00:09]} e5 {[%emt 0:00:02]} 32. Kd2 {[%emt 0:03:14]} e4 {[%emt 0:00:32]} 33. Ne1 {[%emt 0:00:04]} f4 {[%emt 0:10:56]} 34. Nc2 {[%emt 0:00:39]} Kf5 {[%emt 0:00:43]} 35. h3 {[%emt 0:03:40]} e3+ {[%emt 0:01:57]} 36. Ke1 {[%emt 0:00:05]} fxg3 {[%emt 0:01:49]} 37. fxg3 {[%emt 0:00:57]} Ke4 {[%emt 0:00:04]} 38. a3 {[%emt 0:00:12]} bxa3 {[%emt 0:00:38]} 39. Nxa3 {[%emt 0:00:03]} Nb4 {[%emt 0:01:00]} 40. Ke2 {[%emt 0:02:20]} Nd3 {[%emt 0:00:07]} 41. b4 {[%emt 0:00:26]} Nxb4 {[%emt 0:03:07]} 42. Nc4 {[%emt 0:00:05]} Nd5 {[%emt 0:00:44]} 43. Nd6+ {[%emt 0:00:06]} Ke5 {[%emt 0:00:16]} 44. Nf7+ {[%emt 0:00:10]} Kf5 {[%emt 0:03:31]} 45. Nd6+ {[%emt 0:00:09]} Ke5 {[%emt 0:00:02]} 46. Nf7+ {[%emt 0:00:06]} Kf6 {[%emt 0:01:03]} 47. Nd6 {[%emt 0:00:07]} g4 {[%emt 0:00:50]} 48. hxg4 {[%emt 0:00:59]} Ke5 {[%emt 0:00:03]} 49. Nf5 {[%emt 0:00:59]} h5 {[%emt 0:00:43]} 50. Nxe3 {[%emt 0:00:07]} Nxe3 {[%emt 0:00:03]} 51. Kxe3 {[%emt 0:00:05]} 1/2-1/2

[Event "15th Governor Cup 2019"]
[Site "Khanty-Mansiysk"]
[Date "2019.11.24"]
[Round "8.10"]
[White "Najdin, Danil"]
[Black "Bilguun, Sumiya"]
[Result "0-1"]
[ECO "E01"]
[WhiteElo "2357"]
[BlackElo "2496"]
[Annotator "ChessBase"]
[PlyCount "88"]
[EventDate "2019.11.19"]
[EventType "swiss"]
[EventCountry "RUS"]
[SourceTitle "playchess.com"]
[Source "ChessBase"]
[SourceQuality "1"]
[TimeControl "5400+30"]

1. d4 {[%emt 0:00:27]} d5 {[%emt 0:00:00]} 2. c4 {[%emt 0:00:26]} e6 {[%emt 0:00:00]} 3. g3 {[%emt 0:00:39]} Nf6 {[%emt 0:01:31]} 4. Bg2 {[%emt 0:00:46]} dxc4 {[%emt 0:02:30]} 5. Qa4+ {[%emt 0:00:35]} c6 {[%emt 0:11:34]} 6. Qxc4 {[%emt 0:00:28]} b5 {[%emt 0:00:17]} 7. Qc2 {[%emt 0:06:29]} Bb7 {[%emt 0:01:34]} 8. Nf3 {[%emt 0:04:40]} Nbd7 {[%emt 0:00:42]} 9. Nc3 {[%emt 0:02:43]} c5 {[%emt 0:02:11]} 10. O-O {[%emt 0:06:44]} b4 {[%emt 0:06:54]} 11. Na4 {[%emt 0:06:30]} Be4 {[%emt 0:10:07]} 12. Qd1 {[%emt 0:03:12]} c4 {[%emt 0:00:32]} 13. Bg5 {[%emt 0:02:28]} Rc8 {[%emt 0:02:14]} 14. Rc1 {[%emt 0:02:09]} Be7 {[%emt 0:08:45]} 15. Nd2 {[%emt 0:05:21]} Bxg2 {[%emt 0:01:37]} 16. Kxg2 {[%emt 0:00:02]} h6 {[%emt 0:07:52]} 17. Bf4 {[%emt 0:04:05]} g5 {[%emt 0:02:09]} 18. Be3 {[%emt 0:04:20]} Nb6 {[%emt 0:02:28]} 19. f3 {[%emt 0:03:00]} Nfd5 {[%emt 0:16:12]} 20. Bg1 {[%emt 0:01:21]} O-O {[%emt 0:01:26]} 21. Nc5 {[%emt 0:05:53]} c3 {[%emt 0:00:16]} 22. bxc3 {[%emt 0:08:26]} Nxc3 {[%emt 0:00:53]} 23. Qe1 {[%emt 0:00:38]} Nxa2 {[%emt 0:06:38]} 24. Ra1 {[%emt 0:02:07]} Nc3 {[%emt 0:00:13]} 25. Rxa7 {[%emt 0:00:47]} Nb5 {[%emt 0:03:27]} 26. Rb7 {[%emt 0:02:00]} Nxd4 {[%emt 0:01:43]} 27. Nde4 {[%emt 0:10:31]} Bxc5 {[%emt 0:05:02]} 28. Nxc5 {[%emt 0:00:18]} Rxc5 {[%emt 0:00:10]} 29. Qxb4 {[%emt 0:00:21]} Rc4 {[%emt 0:01:09]} 30. Qxb6 {[%emt 0:00:47]} Nxe2 {[%emt 0:00:41]} 31. Bc5 {[%emt 0:07:28]} Qxb6 {[%emt 0:01:35]} 32. Bxb6 {[%emt 0:00:02]} Rb4 {[%emt 0:00:49]} 33. Rd1 {[%emt 0:01:19]} Rc8 {[%emt 0:01:30]} 34. Rdd7 {[%emt 0:05:26]} Rc2 {[%emt 0:00:59]} 35. Bf2 {[%emt 0:01:30]} Rxb7 {[%emt 0:00:15]} 36. Rxb7 {[%emt 0:00:02]} Nd4 {[%emt 0:00:21]} 37. Rd7 {[%emt 0:01:28]} Nf5 {[%emt 0:00:15]} 38. Rd3 {[%emt 0:01:47]} Kh7 {[%emt 0:00:28]} 39. h4 {[%emt 0:01:04]} gxh4 {[%emt 0:00:49]} 40. g4 {[%emt 0:00:07]} Ng3 {[%emt 0:00:41]} 41. Rd7 {[%emt 0:01:28]} Kg6 {[%emt 0:00:06]} 42. Rd1 {[%emt 0:00:24]} Ne2 {[%emt 0:00:16]} 43. Kf1 {[%emt 0:00:39]} h3 {[%emt 0:00:20]} 44. Bh4 {[%emt 0:00:30]} h2 {[%emt 0:00:19]} 0-1